fUST/lending_fUST_20250923
["ID","MTS","AMOUNT","RATE_DAILY","PERIOD"]
[387196559,1758636644247,-480.0,0.00019178,2]
[387196560,1758636644260,-719.34,0.00019178,2]
[387196561,1758636644269,-521.36,0.00019178,2]
[387196562,1758636644279,-480.0,0.00019178,2]
[387196563,1758636644289,-480.0,0.00019178,2]
[387196564,1758636644403,-480.0,0.00019178,2]
[387196565,1758636644413,-774.01,0.00019178,2]
[387196566,1758636644424,-482.10576425,0.00019178,2]
[387196567,1758636644435,-151.0,0.00019178,2]
[387196568,1758636644448,-151.0,0.00019178,2]
[387196569,1758636644469,-480.0,0.00019178,2]
[387196570,1758636644488,-151.0,0.00019178,2]
[387196571,1758636644509,-480.0,0.00019178,2]
[387196572,1758636644529,-151.0,0.00019178,2]
[387196573,1758636644550,-1155.3,0.00019178,2]
[387196574,1758636644570,-151.0,0.00019178,2]
[387196575,1758636644591,-151.0,0.00019178,2]
[387196576,1758636644611,-978.0,0.00019328,2]
[387196577,1758636644632,-635.0,0.00019328,2]
[387196578,1758636644657,-2159.0,0.00019328,2]
[387196579,1758636644677,-151.0,0.00019328,2]
[387196580,1758636644698,-227.355492,0.00019328,2]
[387196581,1758636644719,-227.355492,0.00019328,2]
[387196582,1758636644740,-151.0,0.00019328,2]
[387196583,1758636644756,-227.355492,0.00019328,2]
[387196584,1758636644765,-151.0,0.00019328,2]
[387196585,1758636644775,-227.355492,0.00019328,2]
[387196586,1758636644784,-151.0,0.00019328,2]
[387196587,1758636644794,-151.0,0.00019328,2]
[387196588,1758636644803,-845.78,0.00019442,3]
[387196589,1758636644815,-422.89,0.00019442,3]
[387196590,1758636644838,-211.44,0.00019442,3]
[387196591,1758636644860,-634.37,0.00019442,3]
[387196592,1758636644885,-480.0,0.00019452,2]
[387196593,1758636644918,-151.0,0.00019452,2]
[387196594,1758636644945,-151.0,0.00019452,2]
[387196595,1758636644968,-151.0,0.00019452,2]
[387196596,1758636644992,-480.0,0.00019452,2]
[387196597,1758636645016,-480.0,0.00019452,2]
[387196598,1758636645040,-480.0,0.00019452,2]
[387196599,1758636645063,-275.040463,0.00019452,2]
[387196600,1758636645086,-480.0,0.00019452,2]
[387196601,1758636645110,-151.0,0.00019452,2]
[387196602,1758636645135,-151.0,0.00019452,2]
[387196603,1758636645151,-480.0,0.00019452,2]
[387196604,1758636645161,-480.0,0.00019452,2]
[387196605,1758636645171,-151.0,0.00019452,2]
[387196606,1758636645181,-151.0,0.00019452,2]
[387196607,1758636645191,-480.0,0.00019452,2]
[387196608,1758636645202,-534.25515285,0.00019452,2]
[387196609,1758636645211,-151.0,0.00019452,2]
[387196610,1758636645220,-151.0,0.00019452,2]
[387196611,1758636645229,-151.0,0.00019452,2]
[387196612,1758636645239,-519.24,0.00019452,2]
[387196613,1758636645248,-480.0,0.00019452,2]
[387196614,1758636645262,-480.0,0.00019452,2]
[387196615,1758636645271,-480.0,0.00019452,2]
[387196616,1758636645280,-151.0,0.00019452,2]
[387196617,1758636645289,-480.0,0.00019452,2]
[387196618,1758636645300,-151.0,0.00019452,2]
[387196619,1758636645309,-480.0,0.00019452,2]
[387196620,1758636645319,-151.0,0.00019452,2]
[387196621,1758636645329,-480.0,0.00019452,2]
[387196622,1758636645338,-480.0,0.00019452,2]
[387196623,1758636645347,-151.0,0.00019452,2]
[387196624,1758636645357,-151.0,0.00019452,2]
[387196625,1758636645367,-151.0,0.00019452,2]
[387196626,1758636645376,-151.0,0.00019452,2]
[387196627,1758636645388,-202.555488,0.00019452,2]
[387196628,1758636645398,-151.0,0.00019452,2]
[387196629,1758636645407,-151.0,0.00019452,2]
[387196630,1758636645416,-151.0,0.00019452,2]
[387196631,1758636645426,-151.0,0.00019452,2]
[387196632,1758636645435,-151.0,0.00019452,2]
[387196633,1758636645444,-522.53,0.00019452,2]
[387196634,1758636645453,-151.0,0.00019452,2]
[387196635,1758636645463,-151.0,0.00019452,2]
[387196636,1758636645472,-151.161939,0.00019452,2]
[387196637,1758636645481,-285.87,0.00019452,2]
[387196638,1758636645490,-202.0,0.00019452,2]
[387196639,1758636645499,-151.0,0.00019452,2]
[387196640,1758636645508,-151.0,0.00019452,2]
[387196641,1758636645517,-151.0,0.00019452,2]
[387196642,1758636645527,-151.0,0.00019452,2]
[387196643,1758636645536,-151.0,0.00019452,2]
[387196644,1758636645545,-480.0,0.00019452,2]
[387196645,1758636645555,-151.0,0.00019452,2]
[387196646,1758636645564,-151.0,0.00019452,2]
[387196647,1758636645573,-4209.55,0.00019452,2]
[387196648,1758636645583,-740.07,0.00019452,2]
[387196649,1758636645592,-151.0,0.00019452,2]
[387196650,1758636645602,-480.0,0.00019452,2]
[387196651,1758636645612,-248.333539,0.00019452,2]
[387196652,1758636645621,-151.0,0.00019452,2]
[387196653,1758636645632,-151.0,0.00019452,2]
[387196654,1758636645641,-151.0,0.00019452,2]
[387196655,1758636645651,-573.4,0.00019452,2]
[387196656,1758636645660,-1917.2,0.00019452,2]
[387196657,1758636645669,-151.0,0.00019452,2]
[387196658,1758636645679,-151.0,0.00019452,2]
[387196659,1758636645688,-151.0,0.00019452,2]
[387196660,1758636645698,-578.91,0.00019452,2]
[387196661,1758636645707,-151.0,0.00019452,2]
[387196662,1758636645718,-151.0,0.00019452,2]
[387196663,1758636645727,-588.35,0.00019452,2]
[387196664,1758636645737,-608.8,0.00019452,2]
[387196665,1758636645746,-480.0,0.00019452,2]
[387196666,1758636645755,-151.0,0.00019452,2]
[387196667,1758636645765,-151.0,0.00019452,2]
[387196668,1758636645774,-581.32,0.00019452,2]
[387196669,1758636645784,-480.0,0.00019452,2]
[387196670,1758636645794,-717.18,0.00019452,2]
[387196671,1758636645804,-205.0,0.00019452,2]
[387196672,1758636645813,-151.0,0.00019452,2]
[387196673,1758636645823,-151.0,0.00019452,2]
[387196674,1758636645832,-151.0,0.00019452,2]
[387196675,1758636645841,-151.0,0.00019452,2]
[387196676,1758636645850,-151.0,0.00019452,2]
[387196677,1758636645859,-151.0,0.00019452,2]
[387196678,1758636645869,-151.0,0.00019452,2]
[387196679,1758636645879,-151.0,0.00019452,2]
[387196680,1758636645888,-480.0,0.00019452,2]
[387196681,1758636645898,-151.0,0.00019452,2]
[387196682,1758636645906,-595.32,0.00019452,2]
[387196683,1758636645916,-151.0,0.00019452,2]
[387196684,1758636645925,-151.0,0.00019452,2]
[387196685,1758636645935,-480.0,0.00019452,2]
[387196686,1758636645944,-1487.56,0.00019452,2]
[387196687,1758636645954,-838.95,0.00019452,2]
[387196688,1758636645964,-151.0,0.00019452,2]
[387196689,1758636645973,-151.0,0.00019452,2]
[387196690,1758636645982,-480.0,0.00019452,2]
[387196691,1758636645991,-480.0,0.00019452,2]
[387196692,1758636646000,-7928.21,0.00019452,2]
[387196693,1758636646009,-480.0,0.00019452,2]
[387196694,1758636646019,-989.51,0.00019452,2]
[387196695,1758636646028,-480.0,0.00019452,2]
[387196696,1758636646037,-480.0,0.00019452,2]
[387196697,1758636646046,-151.0,0.00019452,2]
[387196698,1758636646056,-151.0,0.00019452,2]
[387196699,1758636646065,-914.09,0.00019452,2]
[387196700,1758636646075,-151.0,0.00019452,2]
[387196701,1758636646084,-531.44,0.00019452,2]
[387196702,1758636646093,-151.0,0.00019452,2]
[387196703,1758636646103,-151.0,0.00019452,2]
[387196704,1758636646113,-151.0,0.00019452,2]
[387196705,1758636646123,-185.795673,0.00019452,2]
[387196706,1758636646133,-151.0,0.00019452,2]
[387196707,1758636646143,-151.0,0.00019452,2]
[387196708,1758636646152,-480.0,0.00019452,2]
[387196709,1758636646161,-167.485033,0.00019452,2]
[387196710,1758636646171,-151.0,0.00019452,2]
[387196711,1758636646180,-514.0,0.00019452,2]
[387196712,1758636646189,-151.47591,0.00019452,2]
[387196713,1758636646198,-480.0,0.00019452,2]
[387196714,1758636646208,-151.0,0.00019452,2]
[387196715,1758636646217,-151.0,0.00019452,2]
[387196716,1758636646227,-151.0,0.00019452,2]
[387196717,1758636646236,-192.287821,0.00019452,2]
[387196718,1758636646245,-1515.17,0.00019452,2]
[387196719,1758636646257,-480.0,0.00019452,2]
[387196720,1758636646267,-480.0,0.00019452,2]
[387196722,1758636646276,-480.0,0.00019452,2]
[387196724,1758636646286,-151.0,0.00019452,2]
[387196726,1758636646295,-151.0,0.00019452,2]
[387196727,1758636646304,-480.0,0.00019452,2]
[387196728,1758636646313,-480.0,0.00019452,2]
[387196729,1758636646323,-480.0,0.00019452,2]
[387196730,1758636646333,-480.0,0.00019452,2]
[387196731,1758636646342,-480.0,0.00019452,2]
[387196732,1758636646352,-151.0,0.00019452,2]
[387196734,1758636646361,-480.0,0.00019452,2]
[387196736,1758636646371,-777.11,0.00019452,2]
[387196737,1758636646381,-539.46,0.00019452,2]
[387196738,1758636646390,-480.0,0.00019452,2]
[387196739,1758636646405,-151.0,0.00019452,2]
[387196740,1758636646426,-151.0,0.00019452,2]
[387196741,1758636646449,-151.0,0.00019452,2]
[387196742,1758636646473,-151.0,0.00019452,2]
[387196743,1758636646495,-480.0,0.00019452,2]
[387196744,1758636646517,-480.0,0.00019452,2]
[387196745,1758636646540,-151.0,0.00019452,2]
[387196746,1758636646563,-227.355492,0.00019452,2]
[387196747,1758636646587,-987.14,0.00019452,2]
[387196749,1758636646608,-227.355492,0.00019452,2]
[387196751,1758636646631,-151.0,0.00019452,2]
[387196752,1758636646652,-227.355492,0.00019452,2]
[387196753,1758636646674,-151.0,0.00019452,2]
[387196755,1758636646697,-227.355492,0.00019452,2]
[387196756,1758636646719,-1777.11,0.00019452,2]
[387196758,1758636646741,-480.0,0.00019452,2]
[387196759,1758636646759,-480.0,0.00019452,2]
[387196760,1758636646769,-480.0,0.00019452,2]
[387196761,1758636646778,-548.41654058,0.00019452,2]
[387196762,1758636646788,-898.1,0.00019452,2]
[387196763,1758636646798,-213.56113103,0.00019452,2]
[387196764,1758636646807,-480.0,0.00019452,2]
[387196765,1758636646817,-151.0,0.00019452,2]
[387196766,1758636646827,-719.34,0.00019452,2]
[387196767,1758636646837,-521.36,0.00019452,2]
[387196768,1758636646846,-151.0,0.00019452,2]
[387196769,1758636646855,-480.0,0.00019452,2]
[387196770,1758636646864,-774.01,0.00019452,2]
[387196771,1758636646874,-151.0,0.00019452,2]
[387196772,1758636646884,-151.0,0.00019452,2]
[387196773,1758636646894,-480.0,0.00019452,2]
[387196774,1758636646903,-151.0,0.00019452,2]
[387196775,1758636646913,-480.0,0.00019452,2]
[387196776,1758636646922,-151.0,0.00019452,2]
[387196777,1758636646931,-1155.3,0.00019452,2]
[387196779,1758636646940,-151.0,0.00019452,2]
[387196781,1758636646949,-500.0,0.00019473,2]
[387196783,1758636646958,-500.0,0.00019473,2]
[387196784,1758636646967,-500.0,0.00019473,2]
[387196785,1758636646977,-500.0,0.00019473,2]
[387196786,1758636646986,-6876.67622078,0.000195,2]
[387196787,1758636646996,-151.0,0.000195,2]
[387196788,1758636647006,-12695.6728143,0.00019626,2]
[387196789,1758636647016,-227.355492,0.00019688,2]
[387196790,1758636647025,-227.355492,0.00019688,2]
[387196791,1758636647034,-151.0,0.00019688,2]
[387196792,1758636647044,-227.355492,0.00019688,2]
[387196793,1758636647054,-182.667147,0.00019688,2]
[387196794,1758636647064,-227.355492,0.00019688,2]
[387196795,1758636647073,-1000.0,0.00019721,2]
[387196796,1758636647082,-1000.0,0.00019721,2]
[387196797,1758636647092,-227.48569811,0.00019726,2]
[387196798,1758636647101,-151.0,0.00019726,2]
[387196799,1758636647111,-151.0,0.00019726,2]
[387196800,1758636647120,-220.38118385,0.00019726,2]
[387196801,1758636647129,-480.0,0.00019726,2]
[387196802,1758636647139,-406.43752809,0.00019726,2]
[387196803,1758636647149,-480.0,0.00019726,2]
[387196804,1758636647159,-151.0,0.00019726,2]
[387196805,1758636647168,-151.0,0.00019726,2]
[387196806,1758636647177,-480.0,0.00019726,2]
[387196807,1758636647187,-151.0,0.00019726,2]
[387196808,1758636647197,-151.0,0.00019726,2]
[387196809,1758636647206,-480.0,0.00019726,2]
[387196810,1758636647215,-151.0,0.00019726,2]
[387196811,1758636647224,-151.0,0.00019726,2]
[387196812,1758636647234,-151.0,0.00019726,2]
[387196813,1758636647243,-519.24,0.00019726,2]
[387196814,1758636647252,-480.0,0.00019726,2]
[387196815,1758636647263,-480.0,0.00019726,2]
[387196816,1758636647273,-480.0,0.00019726,2]
[387196817,1758636647283,-480.0,0.00019726,2]
[387196818,1758636647292,-480.0,0.00019726,2]
[387196819,1758636647301,-480.0,0.00019726,2]
[387196820,1758636647311,-480.0,0.00019726,2]
[387196821,1758636647320,-151.0,0.00019726,2]
[387196822,1758636647330,-151.0,0.00019726,2]
[387196823,1758636647340,-237.760226,0.00019726,2]
[387196824,1758636647350,-522.53,0.00019726,2]
[387196825,1758636647359,-151.0,0.00019726,2]
[387196826,1758636647369,-151.0,0.00019726,2]
[387196827,1758636647378,-205.09072842,0.00019726,2]
[387196828,1758636647389,-4209.55,0.00019726,2]
[387196829,1758636647486,-740.07,0.00019726,2]
[387196830,1758636647496,-500.0,0.00019726,2]
[387196831,1758636647505,-480.0,0.00019726,2]
[387196832,1758636647513,-573.4,0.00019726,2]
[387196833,1758636647522,-1917.2,0.00019726,2]
[387196834,1758636647531,-151.0,0.00019726,2]
[387196835,1758636647539,-578.91,0.00019726,2]
[387196836,1758636647548,-588.35,0.00019726,2]
[387196837,1758636647557,-608.8,0.00019726,2]
[387196838,1758636647565,-480.0,0.00019726,2]
[387196839,1758636647573,-581.32,0.00019726,2]
[387196840,1758636647582,-480.0,0.00019726,2]
[387196841,1758636647590,-717.18,0.00019726,2]
[387196842,1758636647599,-151.0,0.00019726,2]
[387196843,1758636647607,-151.0,0.00019726,2]
[387196844,1758636647616,-151.0,0.00019726,2]
[387196845,1758636647625,-192.075,0.00019726,2]
[387196846,1758636647636,-480.0,0.00019726,2]
[387196847,1758636647646,-595.32,0.00019726,2]
[387196848,1758636647655,-480.0,0.00019726,2]
[387196849,1758636647665,-1487.56,0.00019726,2]
[387196850,1758636647674,-838.95,0.00019726,2]
[387196851,1758636647683,-480.0,0.00019726,2]
[387196852,1758636647692,-480.0,0.00019726,2]
[387196853,1758636647701,-7928.21,0.00019726,2]
[387196854,1758636647711,-480.0,0.00019726,2]
[387196855,1758636647720,-989.51,0.00019726,2]
[387196856,1758636647729,-480.0,0.00019726,2]
[387196857,1758636647738,-320.53345455,0.00019726,2]
[387196858,1758636647746,-151.0,0.00019726,2]
[387196859,1758636647754,-151.0,0.00019726,2]
[387196860,1758636647763,-914.09,0.00019726,2]
[387196861,1758636647772,-531.44,0.00019726,2]
[387196862,1758636647781,-151.0,0.00019726,2]
[387196863,1758636647790,-151.0,0.00019726,2]
[387196864,1758636647799,-151.0,0.00019726,2]
[387196865,1758636647808,-151.0,0.00019726,2]
[387196866,1758636647818,-480.0,0.00019726,2]
[387196867,1758636647827,-514.0,0.00019726,2]
[387196868,1758636647836,-480.0,0.00019726,2]
[387196869,1758636647846,-151.0,0.00019726,2]
[387196870,1758636647855,-151.0,0.00019726,2]
[387196871,1758636647864,-1515.17,0.00019726,2]
[387196872,1758636647873,-480.0,0.00019726,2]
[387196873,1758636647882,-480.0,0.00019726,2]
[387196874,1758636647891,-480.0,0.00019726,2]
[387196875,1758636647901,-151.0,0.00019726,2]
[387196876,1758636647910,-151.0,0.00019726,2]
[387196877,1758636647919,-480.0,0.00019726,2]
[387196878,1758636647929,-480.0,0.00019726,2]
[387196879,1758636647937,-480.0,0.00019726,2]
[387196880,1758636647945,-480.0,0.00019726,2]
[387196881,1758636647953,-480.0,0.00019726,2]
[387196882,1758636647962,-480.0,0.00019726,2]
[387196883,1758636647970,-777.11,0.00019726,2]
[387196884,1758636647979,-539.46,0.00019726,2]
[387196885,1758636647987,-480.0,0.00019726,2]
[387196886,1758636647997,-151.0,0.00019726,2]
[387196887,1758636648007,-151.0,0.00019726,2]
[387196888,1758636648016,-206.526152,0.00019726,2]
[387196889,1758636648026,-489.85088478,0.00019726,2]
[387196890,1758636648036,-480.0,0.00019726,2]
[387196891,1758636648046,-227.355492,0.00019726,2]
[387196892,1758636648055,-987.14,0.00019726,2]
[387196893,1758636648065,-227.355492,0.00019726,2]
[387196894,1758636648074,-151.0,0.00019726,2]
[387196895,1758636648084,-227.355492,0.00019726,2]
[387196896,1758636648094,-227.355492,0.00019726,2]
[387196897,1758636648104,-1777.11,0.00019726,2]
[387196898,1758636648113,-480.0,0.00019726,2]
[387196899,1758636648123,-480.0,0.00019726,2]
[387196900,1758636648134,-480.0,0.00019726,2]
[387196901,1758636648144,-898.1,0.00019726,2]
[387196902,1758636648154,-480.0,0.00019726,2]
[387196903,1758636648164,-719.34,0.00019726,2]
[387196904,1758636648174,-521.36,0.00019726,2]
[387196905,1758636648184,-480.0,0.00019726,2]
[387196906,1758636648194,-774.01,0.00019726,2]
[387196907,1758636648203,-151.0,0.00019726,2]
[387196908,1758636648213,-151.0,0.00019726,2]
[387196909,1758636648224,-480.0,0.00019726,2]
[387196910,1758636648234,-151.0,0.00019726,2]
[387196911,1758636648243,-480.0,0.00019726,2]
[387196912,1758636648255,-1155.3,0.00019726,2]
[387196913,1758636648266,-151.0,0.00019726,2]
[387196914,1758636648276,-505.03476256,0.00019747,2]
[387196915,1758636648286,-151.0,0.00019788,2]
[387196916,1758636648299,-700.0,0.000198,2]
[387196917,1758636648309,-174.26759782,0.00019808,2]
[387196918,1758636648319,-151.0,0.000199,2]
[387196919,1758636648329,-151.0,0.000199,2]
[387196920,1758636648341,-4754.16518277,0.000199,2]
[387196921,1758636648351,-151.0,0.00019901,2]
[387196922,1758636648361,-151.0,0.00019901,2]
[387196923,1758636648371,-259.516042,0.00019901,2]
[387196924,1758636648383,-329.04586328,0.00019973,2]
[387196925,1758636648392,-500.0,0.00019973,2]
[387196926,1758636648402,-500.0,0.00019973,2]
[387196927,1758636648412,-175.0,0.00019993,2]
[387196928,1758636648422,-500.0,0.0002,2]
[387196929,1758636648432,-19600.58,0.0002,2]
[387196930,1758636648442,-480.0,0.0002,2]
[387196931,1758636648452,-480.0,0.0002,2]
[387196932,1758636648462,-151.0,0.0002,2]
[387196933,1758636648472,-179.91292044,0.0002,2]
[387196934,1758636648481,-197.860276,0.0002,2]
[387196935,1758636648491,-519.24,0.0002,2]
[387196936,1758636648501,-480.0,0.0002,2]
[387196937,1758636648511,-480.0,0.0002,2]
[387196938,1758636648522,-480.0,0.0002,2]
[387196939,1758636648532,-480.0,0.0002,2]
[387196940,1758636648542,-480.0,0.0002,2]
[387196941,1758636648552,-480.0,0.0002,2]
[387196942,1758636648563,-480.0,0.0002,2]
[387196943,1758636648573,-151.0,0.0002,2]
[387196944,1758636648582,-151.0,0.0002,2]
[387196945,1758636648593,-522.53,0.0002,2]
[387196946,1758636648602,-4209.55,0.0002,2]
[387196947,1758636648612,-740.07,0.0002,2]
[387196948,1758636648622,-454.10116043,0.0002,2]
[387196949,1758636648633,-573.4,0.0002,2]
[387196950,1758636648642,-1917.2,0.0002,2]
[387196951,1758636648652,-351.662661,0.0002,10]
[387196952,1758636648661,-151.0,0.0002,2]
[387196953,1758636648672,-151.0,0.0002,2]
[387196954,1758636648682,-578.91,0.0002,2]
[387196955,1758636648695,-588.35,0.0002,2]
[387196956,1758636648704,-608.8,0.0002,2]
[387196957,1758636648714,-480.0,0.0002,2]
[387196958,1758636648724,-581.32,0.0002,2]
[387196959,1758636648735,-480.0,0.0002,2]
[387196960,1758636648744,-717.18,0.0002,2]
[387196961,1758636648754,-151.0,0.0002,2]
[387196962,1758636648764,-480.0,0.0002,2]
[387196963,1758636648773,-595.32,0.0002,2]
[387196964,1758636648783,-480.0,0.0002,2]
[387196965,1758636648793,-1487.56,0.0002,2]
[387196966,1758636648803,-838.95,0.0002,2]
[387196967,1758636648813,-281.25504258,0.0002,2]
[387196968,1758636648823,-480.0,0.0002,2]
[387196969,1758636648832,-7928.21,0.0002,2]
[387196970,1758636648843,-195.6344212,0.0002,2]
[387196971,1758636648852,-989.51,0.0002,2]
[387196972,1758636648862,-480.0,0.0002,2]
[387196973,1758636648872,-914.09,0.0002,2]
[387196974,1758636648884,-151.0,0.0002,2]
[387196975,1758636648893,-531.44,0.0002,2]
[387196976,1758636648903,-151.0,0.0002,2]
[387196977,1758636648913,-151.0,0.0002,2]
[387196978,1758636648922,-480.0,0.0002,2]
[387196979,1758636648931,-514.0,0.0002,2]
[387196980,1758636648942,-480.0,0.0002,2]
[387196981,1758636648952,-151.0,0.0002,2]
[387196982,1758636648962,-1515.17,0.0002,2]
[387196983,1758636648972,-480.0,0.0002,2]
[387196984,1758636648982,-480.0,0.0002,2]
[387196985,1758636648992,-480.0,0.0002,2]
[387196986,1758636649002,-480.0,0.0002,2]
[387196987,1758636649012,-480.0,0.0002,2]
[387196988,1758636649022,-480.0,0.0002,2]
[387196989,1758636649032,-480.0,0.0002,2]
[387196990,1758636649042,-480.0,0.0002,2]
[387196991,1758636649052,-480.0,0.0002,2]
[387196992,1758636649061,-777.11,0.0002,2]
[387196993,1758636649071,-539.46,0.0002,2]
[387196994,1758636649081,-480.0,0.0002,2]
[387196995,1758636649091,-151.0,0.0002,2]
[387196996,1758636649101,-480.0,0.0002,2]
[387196997,1758636649111,-987.14,0.0002,2]
[387196998,1758636649121,-227.355492,0.0002,2]
[387196999,1758636649134,-227.355492,0.0002,2]
[387197000,1758636649144,-151.0,0.0002,2]
[387197001,1758636649155,-227.355492,0.0002,2]
[387197002,1758636649165,-227.3555,0.0002,2]
[387197003,1758636649175,-1777.11,0.0002,2]
[387197004,1758636649185,-480.0,0.0002,2]
[387197005,1758636649195,-274.50203495,0.0002,2]
[387197006,1758636649205,-480.0,0.0002,2]
[387197007,1758636649215,-898.1,0.0002,2]
[387197008,1758636649224,-480.0,0.0002,2]
[387197009,1758636649234,-719.34,0.0002,2]
[387197010,1758636649245,-521.36,0.0002,2]
[387197011,1758636649256,-480.0,0.0002,2]
[387197012,1758636649267,-774.01,0.0002,2]
[387197013,1758636649277,-151.0,0.0002,2]
[387197014,1758636649287,-480.0,0.0002,2]
[387197015,1758636649298,-480.0,0.0002,2]
[387197016,1758636649308,-1155.3,0.0002,2]
[387197017,1758636649318,-5000.0,0.00020001,2]
[387197018,1758636649328,-5007.0,0.00020001,2]
[387197019,1758636649339,-175.0,0.00020008,2]
[387197020,1758636649349,-9501.30949928,0.0002001,4]
[387197021,1758636649359,-151.0,0.0002001,2]
[387197022,1758636649369,-1008.58252175,0.00020021,2]
[387197023,1758636649379,-168.0,0.00020075,2]
[387197024,1758636649390,-150.0,0.000201,5]
[387197025,1758636649401,-168.0,0.00020187,2]
[387197026,1758636649411,-15247.61249366,0.000202,2]
[387197027,1758636649626,-151.0,0.00019452,2]
[387197028,1758636649637,-753.22,0.00019716,3]
[387197043,1758636958127,742.0,0.00018,2]
[387197044,1758637056700,300.0,0.0001956,20]
[387197045,1758637057408,300.0,0.0001956,20]
[387197046,1758637058105,300.0,0.0001956,20]
[387197047,1758637058795,300.0,0.0001956,20]
[387197116,1758637832422,-458.59857326,0.00019067,2]
[387197118,1758637832436,-624.76173176,0.00019067,2]
[387197120,1758637832446,-2947.64586104,0.00019078,2]
[387197122,1758637832456,-1200.0,0.00019163,2]
[387197124,1758637832466,-1200.0,0.00019164,2]
[387197126,1758637832476,-285.0,0.00019165,2]
[387197128,1758637832487,-300.0,0.00019165,2]
[387197130,1758637832497,-151.07159166,0.00019166,2]
[387197132,1758637832507,-303.60074619,0.00019166,2]
[387197134,1758637832516,-1000.0,0.00019166,2]
[387197136,1758637832526,-168.38880561,0.00019166,2]
[387197138,1758637832538,-1000.0,0.00019166,2]
[387197140,1758637832548,-1006.43456884,0.00019166,2]
[387197142,1758637832557,-19292.2273969,0.00019166,2]
[387197145,1758637832567,-151.0,0.00019166,2]
[387197147,1758637832577,-151.0,0.00019166,2]
[387197149,1758637832588,-151.0,0.00019166,2]
[387197151,1758637832598,-151.0,0.00019166,2]
[387197153,1758637832608,-151.0,0.00019166,2]
[387197154,1758637832617,-151.0,0.00019166,2]
[387197157,1758637832627,-1324.72,0.00019168,3]
[387197159,1758637832637,-662.36,0.00019168,3]
[387197160,1758637832648,-331.18,0.00019168,3]
[387197163,1758637832659,-165.59,0.00019168,3]
[387197165,1758637832669,-496.78,0.00019168,3]
[387197167,1758637832678,-480.0,0.00019176,7]
[387197169,1758637832688,-372.95621148,0.00019176,2]
[387197171,1758637832698,-1000.0,0.00019177,2]
[387197173,1758637832707,-1000.0,0.00019177,2]
[387197175,1758637832717,-1000.0,0.00019177,2]
[387197177,1758637832726,-247.83691915,0.00019177,2]
[387197179,1758637832736,-500.0,0.00019177,2]
[387197181,1758637832746,-500.0,0.00019177,2]
[387197183,1758637832755,-500.0,0.00019177,2]
[387197185,1758637832766,-500.0,0.00019177,2]
[387197187,1758637832776,-500.0,0.00019177,2]
[387197189,1758637832787,-500.0,0.00019177,2]